fUST/lending_fUST_20251013
["ID","MTS","AMOUNT","RATE_DAILY","PERIOD"]
[391121288,1760365467832,150.0,0.00020251,2]
[391121290,1760365548129,150.0,0.00020271,2]
[391121306,1760365629307,150.0,0.00020291,2]
[391121311,1760365709353,150.0,0.00020291,2]
[391121317,1760365790124,150.0,0.00020302,2]
[391121343,1760365831871,-241.11,0.00022147,2]
[391121345,1760365831882,-1200.0,0.00023412,2]
[391121347,1760365831891,-1200.0,0.00023413,2]
[391121349,1760365831901,-300.0,0.00023413,2]
[391121351,1760365831911,-300.0,0.00023413,2]
[391121353,1760365831920,-300.0,0.00023413,2]
[391121355,1760365831930,-300.0,0.00023413,2]
[391121357,1760365831939,-300.0,0.00023413,2]
[391121359,1760365831948,-4969.8568858,0.00023415,2]
[391121361,1760365831958,-150.0,0.00023415,2]
[391121363,1760365831968,-3397.28562962,0.00023826,2]
[391121395,1760365832403,-3150.62516682,0.00023826,2]
[391121396,1760365832414,-1233.1220595,0.00023826,2]
[391121397,1760365832426,-434.97467615,0.00023826,2]
[391121435,1760365837874,-500.0,0.00023825,2]
[391121436,1760365837884,-500.0,0.00023825,2]
[391121437,1760365837894,-500.0,0.00023825,2]
[391121438,1760365837903,-500.0,0.00023825,2]
[391121439,1760365837912,-500.0,0.00023825,2]
[391121440,1760365837921,-500.0,0.00023825,2]
[391121442,1760365837930,-500.0,0.00023825,2]
[391121443,1760365837940,-500.0,0.00023825,2]
[391121444,1760365837949,-500.0,0.00023825,2]
[391121445,1760365837960,-500.0,0.00023825,2]
[391121446,1760365837970,-500.0,0.00023825,2]
[391121447,1760365837980,-500.0,0.00023825,2]
[391121448,1760365837991,-153.04535772,0.00023825,2]
[391121450,1760365838000,-500.0,0.00023825,2]
[391121451,1760365838010,-500.0,0.00023825,2]
[391121452,1760365838019,-500.0,0.00023825,2]
[391121453,1760365838028,-500.0,0.00023825,2]
[391121454,1760365838037,-500.0,0.00023825,2]
[391121455,1760365838050,-500.0,0.00023825,2]
[391121456,1760365838060,-500.0,0.00023825,2]
[391121457,1760365838069,-607.86796425,0.00023825,2]
[391121458,1760365838079,-500.0,0.00023825,2]
[391121459,1760365838089,-500.0,0.00023825,2]
[391121460,1760365838098,-500.0,0.00023825,2]
[391121461,1760365838109,-500.0,0.00023825,2]
[391121462,1760365838119,-500.0,0.00023825,2]
[391121463,1760365838129,-500.0,0.00023825,2]
[391121464,1760365838139,-500.0,0.00023825,2]
[391121465,1760365838150,-469.91424179,0.00023825,2]
[391121466,1760365838161,-500.0,0.00023825,2]
[391121467,1760365838171,-500.0,0.00023825,2]
[391121468,1760365838181,-500.0,0.00023825,2]
[391121469,1760365838191,-500.0,0.00023825,2]
[391121470,1760365838201,-500.0,0.00023825,2]
[391121471,1760365838211,-500.0,0.00023825,2]
[391121472,1760365838220,-500.0,0.00023825,2]
[391121473,1760365838230,-500.0,0.00023825,2]
[391121474,1760365838239,-500.0,0.00023825,2]
[391121475,1760365838250,-500.0,0.00023825,2]
[391121476,1760365838260,-627.40389194,0.00023825,2]
[391121477,1760365838270,-500.0,0.00023825,2]
[391121478,1760365838279,-500.0,0.00023825,2]
[391121479,1760365838288,-500.0,0.00023825,2]
[391121480,1760365838300,-622.86980764,0.00023825,2]
[391121481,1760365838309,-500.0,0.00023825,2]
[391121482,1760365838318,-500.0,0.00023825,2]
[391121483,1760365838327,-500.0,0.00023825,2]
[391121484,1760365838337,-500.0,0.00023825,2]
[391121485,1760365838346,-500.0,0.00023825,2]
[391121486,1760365838355,-500.0,0.00023825,2]
[391121487,1760365838365,-500.0,0.00023825,2]
[391121488,1760365838375,-500.0,0.00023825,2]
[391121489,1760365838383,-500.0,0.00023825,2]
[391121490,1760365838393,-500.0,0.00023825,2]
[391121491,1760365838402,-500.0,0.00023825,2]
[391121492,1760365838411,-500.0,0.00023825,2]
[391121493,1760365838421,-500.0,0.00023825,2]
[391121494,1760365838430,-224.74540855,0.00023825,2]
[391121495,1760365838440,-500.0,0.00023825,2]
[391121496,1760365838449,-500.0,0.00023825,2]
[391121497,1760365838458,-500.0,0.00023825,2]
[391121498,1760365838468,-500.0,0.00023825,2]
[391121499,1760365838477,-401.49032081,0.00023825,2]
[391121500,1760365838486,-500.0,0.00023825,2]
[391121501,1760365838495,-500.0,0.00023825,2]
[391121502,1760365838504,-500.0,0.00023825,2]
[391121503,1760365838513,-500.0,0.00023825,2]
[391121504,1760365838523,-500.0,0.00023825,2]
[391121505,1760365838532,-500.0,0.00023825,2]
[391121506,1760365838542,-500.0,0.00023825,2]
[391121507,1760365838557,-500.0,0.00023825,2]
[391121508,1760365838566,-500.0,0.00023825,2]
[391121509,1760365838575,-500.0,0.00023825,2]
[391121510,1760365838584,-500.0,0.00023825,2]
[391121511,1760365838594,-288.9681481,0.00023825,2]
[391121512,1760365838603,-564.95423765,0.00023825,2]
[391121513,1760365838613,-500.0,0.00023825,2]
[391121514,1760365838622,-500.0,0.00023825,2]
[391121515,1760365838632,-500.0,0.00023825,2]
[391121516,1760365838642,-500.0,0.00023825,2]
[391121517,1760365838651,-500.0,0.00023825,2]
[391121518,1760365838663,-41783.99246791,0.00023826,2]
[391121519,1760365838672,-500.0,0.00023834,2]
[391121520,1760365838682,-242.71820852,0.00023836,2]
[391121521,1760365838692,-500.0,0.00023836,2]
[391121522,1760365838703,-156.23699613,0.00023836,2]
[391121523,1760365838712,-11645.46071668,0.00023837,2]
[391121524,1760365838721,-361.66,0.00023993,2]
[391121525,1760365838731,-1715.04473978,0.00024,2]
[391121526,1760365838741,-163.71535443,0.00024,2]
[391121527,1760365838750,-460.0008442,0.00024,2]
[391121528,1760365838760,-172.5,0.00024015,2]
[391121529,1760365838769,-500.0,0.00024108,2]
[391121530,1760365838778,-1034.93483432,0.00024109,2]
[391121531,1760365838788,-131354.14287383,0.00024142,2]
[391121532,1760365838802,-151.0,0.00024209,2]
[391121533,1760365838811,-151.0,0.00024264,2]
[391121534,1760365838821,-1034.9348343,0.00024282,2]
[391121535,1760365838830,-213.04992668,0.00024319,2]
[391121536,1760365838840,-1034.9348343,0.00024455,2]
[391121537,1760365838850,-314.0,0.00024614,2]
[391121538,1760365838859,-195.0,0.00024615,2]
[391121539,1760365838868,-1034.9348343,0.00024627,2]
[391121540,1760365838878,-527.62924364,0.00024654,2]
[391121541,1760365838887,-151.0,0.00024699,2]
[391121542,1760365838897,-151.0,0.00024699,2]
[391121543,1760365838907,-151.0,0.00024699,2]
[391121544,1760365838917,-152.14160855,0.00024699,2]
[391121545,1760365838926,-170.40948365,0.00024724,2]
[391121546,1760365838935,-151.0,0.00024724,2]
[391121547,1760365838945,-151.0,0.00024724,2]
[391121548,1760365838954,-171.91385009,0.00024724,2]
[391121549,1760365838964,-248.84,0.00024729,3]
[391121550,1760365838973,-746.52,0.00024729,3]
[391121551,1760365838983,-400.0,0.00024737,2]
[391121552,1760365838992,-1000.0,0.00024738,2]
[391121553,1760365839001,-370000.0,0.00024739,2]
[391121554,1760365839011,-151.0,0.00024739,7]
[391121555,1760365839020,-151.0,0.00024739,7]
[391121556,1760365839029,-152.2589684,0.00024754,2]
[391121557,1760365839039,-151.82968302,0.00024754,2]
[391121558,1760365839051,-505.46787646,0.00024773,2]
[391121559,1760365839061,-18143.27,0.000248,7]
[391121560,1760365839071,-1034.9348343,0.000248,2]
[391121561,1760365839080,-309.34206886,0.0002487,2]
[391121562,1760365839090,-152.939466,0.000249,7]
[391121563,1760365839100,-151.0,0.000249,7]
[391121564,1760365839109,-151.0,0.000249,7]
[391121565,1760365839118,-152.586612,0.000249,7]
[391121566,1760365839127,-326889.04691,0.000249,2]
[391121567,1760365839137,-151.0,0.000249,7]
[391121568,1760365839146,-151.0,0.000249,7]
[391121569,1760365839155,-440.05506148,0.00025,7]
[391121570,1760365839165,-20000.02,0.00025,2]
[391121571,1760365839174,-173.758,0.00025003,8]
[391121572,1760365839183,-274.89133358,0.00025022,2]
[391121573,1760365839192,-160.0,0.00025098,2]
[391121574,1760365839202,-402.2877588,0.00025099,2]
[391121575,1760365839211,-204.98640756,0.000251,2]
[391121576,1760365839220,-177.90835514,0.000251,2]
[391121577,1760365839229,-217.5,0.00025215,2]
[391121578,1760365839238,-300.0,0.00025233,20]
[391121579,1760365839247,-300.0,0.00025233,20]
[391121580,1760365839257,-300.0,0.00025233,20]
[391121581,1760365839266,-300.0,0.00025233,20]
[391121582,1760365839276,-300.0,0.00025233,20]
[391121583,1760365839285,-300.0,0.00025233,20]
[391121584,1760365839294,-300.0,0.00025233,20]
[391121585,1760365839309,-300.0,0.00025233,20]
[391121586,1760365839319,-300.0,0.00025233,20]
[391121587,1760365839328,-300.0,0.00025233,20]
[391121588,1760365839337,-300.0,0.00025233,20]
[391121589,1760365839346,-300.0,0.00025233,20]
[391121590,1760365839355,-300.0,0.00025233,20]
[391121591,1760365839364,-300.0,0.00025233,20]
[391121592,1760365839373,-300.0,0.00025233,20]
[391121593,1760365839383,-600.0,0.00025233,20]
[391121594,1760365839393,-160.0,0.00025273,2]
[391121595,1760365839403,-274.89133358,0.00025323,6]
[391121596,1760365839412,-525.0,0.00025405,2]
[391121597,1760365839422,-300.0,0.00025405,2]
[391121598,1760365839432,-420.0,0.00025405,2]
[391121599,1760365839442,-292.0,0.00025405,2]
[391121600,1760365839452,-420.0,0.00025405,2]
[391121601,1760365839461,-420.0,0.00025405,2]
[391121602,1760365839470,-1680.0,0.00025522,2]
[391121603,1760365839480,-274.89133358,0.00025624,10]
[391121604,1760365839489,-274.89133358,0.00025624,10]
[391121605,1760365839498,-500.0,0.00025717,2]
[391121606,1760365839507,-200.53797051,0.00025717,2]
[391121607,1760365839516,-240.0,0.00025815,2]
[391121608,1760365839527,-260.0,0.00025821,2]
[391121609,1760365839536,-482.22,0.00025838,2]
[391121610,1760365839549,-274.89133358,0.00025925,14]
[391121612,1760365839559,-274.89133358,0.00025925,14]
[391121613,1760365839569,-250.0,0.00025936,2]
[391121614,1760365839579,-250.0,0.00025936,2]
[391121615,1760365839588,-250.0,0.00025936,2]
[391121616,1760365839598,-250.0,0.00025936,2]
[391121617,1760365839607,-250.0,0.00025936,2]
[391121618,1760365839617,-250.0,0.00025936,2]
[391121619,1760365839627,-1998.0,0.00026027,2]
[391121620,1760365839636,-497.68,0.00026099,3]
[391121621,1760365839649,-56599.65924639,0.000261,2]
[391121622,1760365839659,-274.89133358,0.00026226,18]
[391121623,1760365839675,-274.89133358,0.00026226,18]
[391121624,1760365839686,-500.0,0.00026265,2]
[391121625,1760365839696,-262.5,0.00026415,2]
[391121626,1760365839707,-285.0,0.00027015,2]
[391121627,1760365839716,-153.0,0.00027264,2]
[391121628,1760365839725,-153.0,0.00027264,2]
[391121629,1760365839736,-154.73097799,0.00027397,2]
[391121630,1760365839745,-2089.07574424,0.00027397,30]
[391121631,1760365839754,-151.0,0.00027397,30]
[391121633,1760365839763,-500.0,0.00027397,30]
[391121635,1760365839772,-500.0,0.00027397,30]
[391121636,1760365839782,-500.0,0.00027397,30]
[391121638,1760365839790,-500.0,0.00027397,30]
[391121639,1760365839803,-500.0,0.00027397,30]
[391121641,1760365839813,-500.0,0.00027397,30]
[391121642,1760365839822,-500.0,0.00027397,30]
[391121644,1760365839832,-500.0,0.00027397,30]
[391121646,1760365839841,-500.0,0.00027397,30]
[391121647,1760365839850,-500.0,0.00027397,30]
[391121648,1760365839859,-500.0,0.00027397,30]
[391121649,1760365839868,-500.0,0.00027397,30]
[391121650,1760365839878,-500.0,0.00027397,30]
[391121651,1760365839887,-500.0,0.00027397,30]
[391121652,1760365839896,-500.0,0.00027397,30]
[391121653,1760365839905,-500.0,0.00027397,30]
[391121654,1760365839914,-500.0,0.00027397,30]
[391121655,1760365839924,-500.0,0.00027397,30]
[391121656,1760365839934,-500.0,0.00027397,30]
[391121657,1760365839943,-500.0,0.00027397,30]
[391121658,1760365839953,-527.62924364,0.00027477,2]
[391121659,1760365839962,-1084.877,0.00027514,2]
[391121660,1760365839972,-411.0,0.00027514,2]
[391121661,1760365839981,-587.0,0.00027567,2]
[391121662,1760365839991,-587.0,0.00027567,2]
[391121663,1760365840001,-587.0,0.00027567,2]
[391121664,1760365840011,-2776.42,0.000276,2]
[391121665,1760365840020,-307.5,0.00027615,2]
[391121666,1760365840030,-602.77,0.00027684,2]
[391121667,1760365840039,-720.0,0.00027756,30]
[391121668,1760365840050,-2296.0,0.00027821,2]
[391121669,1760365840059,-1000.0,0.00028,2]
[391121670,1760365840069,-976.43201705,0.00028146,5]
[391121671,1760365840078,-330.0,0.00028215,2]
[391121672,1760365840086,-500.0,0.00028532,7]
[391121673,1760365840095,-92563.02305532,0.00028778,120]
[391121674,1760365840104,-2089.07574424,0.00028778,120]
[391121675,1760365840113,-151.0,0.00028778,30]
[391121676,1760365840122,-224.619605,0.00028778,30]
[391121677,1760365840132,-352.5,0.00028815,2]
[391121678,1760365840141,-4710.37447539,0.00029,120]
[391121679,1760365840150,-153.0,0.00029268,2]
[391121680,1760365840160,-153.0,0.00029268,2]
[391121681,1760365840169,-361.91542725,0.0002927,2]
[391121682,1760365840178,-153.0,0.00029272,2]
[391121683,1760365840187,-153.0,0.00029306,2]
[391121684,1760365840196,-153.0,0.00029306,2]
[391121685,1760365840206,-153.0,0.0002931,2]
[391121686,1760365840215,-153.0,0.00029342,2]
[391121687,1760365840223,-153.0,0.00029342,2]
[391121688,1760365840232,-153.0,0.00029349,2]
[391121689,1760365840241,-153.0,0.00029388,2]
[391121690,1760365840250,-375.0,0.00029415,2]
[391121691,1760365840259,-784.011548,0.00029507,30]
[391121692,1760365840268,-723.33,0.0002953,2]
[391121693,1760365840277,-151.0,0.000296,16]
[391121694,1760365840287,-2089.07574424,0.000296,120]
[391121695,1760365840295,-823.0,0.00029913,2]
[391121696,1760365840310,-168.0,0.00029934,2]
[391121697,1760365840319,-162.163,0.0003,2]
[391121698,1760365840329,-807.25377439,0.00030004,2]
[391121699,1760365840338,-397.5,0.00030015,2]
[391121700,1760365840347,-276.4938726,0.0003008,2]
[391121701,1760365840356,-25567.1716699,0.0003008,2]
[391121702,1760365840366,-168.9544258,0.0003008,2]
[391121703,1760365840374,-150.0,0.00030136,120]
[391121704,1760365840383,-157.977146,0.00030156,7]
[391121705,1760365840392,-500.0,0.00030176,7]
[391121706,1760365840402,-151.0,0.00030191,30]
[391121707,1760365840411,-151.0,0.00030191,30]
[391121708,1760365840420,-152.860067,0.00030191,30]
[391121709,1760365840430,-225210.89768122,0.00030196,2]
[391121710,1760365840446,-381026.37159063,0.00030196,2]
[391121711,1760365840457,-700.13229495,0.00030196,2]
[391121712,1760365840467,-4240.29859242,0.00030196,2]
[391121713,1760365840479,-333.90136465,0.00030196,2]
[391121714,1760365840493,-1900.18,0.00024132,10]
[391121715,1760365840502,-86497.00373,0.00030196,2]
[391121716,1760365840514,-327.84323264,0.00030196,2]
[391121723,1760365843379,-2328.61,0.00030196,2]
[391121725,1760365845905,-11450.0,0.00030196,2]
[391121740,1760365870042,150.0,0.0002077,2]
[391121757,1760366033382,150.0,0.00020447,2]
[391121758,1760366113439,150.0,0.0002057,2]
[391121759,1760366191578,150.0,0.00020533,2]
[391121768,1760366272354,150.0,0.00020538,2]
[391121771,1760366352919,150.0,0.00020612,2]
[391121775,1760366434760,150.0,0.0002049,2]
[391121785,1760366515560,150.0,0.00020648,2]
[391121846,1760366595941,150.0,0.00020631,2]
[391121881,1760366677331,150.0,0.00020618,2]
[391121903,1760366758641,150.0,0.00020472,2]
[391121906,1760366839851,150.0,0.00020777,2]
[391121907,1760366919567,150.0,0.00020794,2]
[391121924,1760366996939,150.0,0.00020794,2]
[391121949,1760367032127,-164.0,0.00021068,3]
[391121950,1760367032136,-150.0,0.00021068,2]
[391121951,1760367032145,-172.5,0.00021668,2]
[391121952,1760367032153,-288.06478245,0.00022125,2]
[391121953,1760367032162,-195.0,0.00022268,2]
[391121954,1760367032171,-6455.47336204,0.00022452,2]
[391121955,1760367032182,-379.19749853,0.00022452,2]
[391121956,1760367032193,-169.51722383,0.00022452,2]
[391121957,1760367032202,-1067.96302937,0.00022635,2]
[391121968,1760367038212,-132.03697063,0.00022635,2]
[391121969,1760367038223,-300.0,0.00022636,2]
[391121970,1760367038233,-300.0,0.00022636,2]
[391121971,1760367038243,-300.0,0.00022636,2]
[391121972,1760367038253,-300.0,0.00022636,2]
[391121973,1760367038263,-300.0,0.00022636,2]
[391121974,1760367038273,-1583.49,0.00022637,10]
[391121975,1760367038282,-500.0,0.00022638,2]
[391121976,1760367038292,-500.0,0.00022638,2]
[391121977,1760367038301,-500.0,0.00022638,2]
[391121978,1760367038311,-500.0,0.00022638,2]
[391121979,1760367038321,-500.0,0.00022638,2]
[391121980,1760367038330,-500.0,0.00022638,2]
[391121981,1760367038339,-481.34754944,0.00022638,2]
[391121982,1760367038351,-18.65245056,0.00022638,2]
[391121983,1760367038361,-500.0,0.00022638,2]
[391121984,1760367038370,-500.0,0.00022638,2]
[391121985,1760367038379,-224.74540855,0.00022638,2]
[391121986,1760367038388,-500.0,0.00022638,2]
[391121988,1760367038397,-500.0,0.00022638,2]
[391121989,1760367038407,-500.0,0.00022638,2]
[391121990,1760367038417,-500.0,0.00022638,2]
[391121991,1760367038426,-500.0,0.00022638,2]
[391121992,1760367038436,-500.0,0.00022638,2]
[391121993,1760367038445,-500.0,0.00022638,2]
[391121994,1760367038454,-500.0,0.00022638,2]
[391121995,1760367038463,-607.86796425,0.00022638,2]
[391121996,1760367038473,-500.0,0.00022638,2]
[391121997,1760367038483,-500.0,0.00022638,2]
[391121998,1760367038492,-500.0,0.00022638,2]
[391121999,1760367038502,-500.0,0.00022638,2]
[391122000,1760367038516,-500.0,0.00022638,2]
[391122001,1760367038525,-500.0,0.00022638,2]
[391122002,1760367038534,-500.0,0.00022638,2]
[391122003,1760367038543,-500.0,0.00022638,2]
[391122004,1760367038553,-500.0,0.00022638,2]
[391122005,1760367038562,-500.0,0.00022638,2]
[391122006,1760367038571,-500.0,0.00022638,2]
[391122007,1760367038580,-500.0,0.00022638,2]
[391122008,1760367038589,-500.0,0.00022638,2]
[391122009,1760367038598,-500.0,0.00022638,2]
[391122010,1760367038607,-500.0,0.00022638,2]
[391122011,1760367038617,-500.0,0.00022638,2]
[391122012,1760367038626,-500.0,0.00022638,2]
[391122013,1760367038636,-500.0,0.00022638,2]
[391122014,1760367038645,-627.40389194,0.00022638,2]
[391122015,1760367038654,-530.4535772,0.00022638,2]
[391122016,1760367038664,-500.0,0.00022638,2]
[391122017,1760367038674,-213.49542376,0.00022638,2]
[391122018,1760367038683,-500.0,0.00022638,2]
[391122019,1760367038693,-500.0,0.00022638,2]
[391122020,1760367038702,-500.0,0.00022638,2]
[391122021,1760367038711,-500.0,0.00022638,2]
[391122022,1760367038720,-500.0,0.00022638,2]
[391122023,1760367038730,-500.0,0.00022638,2]
[391122024,1760367038739,-500.0,0.00022638,2]
[391122025,1760367038749,-500.0,0.00022638,2]
[391122026,1760367038758,-500.0,0.00022638,2]
[391122027,1760367038769,-500.0,0.00022638,2]
[391122028,1760367038779,-500.0,0.00022638,2]
[391122029,1760367038788,-500.0,0.00022638,2]
[391122030,1760367038798,-500.0,0.00022638,2]
[391122031,1760367038808,-500.0,0.00022638,2]
[391122032,1760367038818,-622.86980764,0.00022638,2]
[391122033,1760367038828,-500.0,0.00022638,2]
[391122034,1760367038837,-500.0,0.00022638,2]
[391122035,1760367038848,-500.0,0.00022638,2]
[391122036,1760367038859,-208.40859116,0.00022638,2]
[391122037,1760367038872,-291.59140884,0.00022638,2]
[391122038,1760367038881,-500.0,0.00022638,2]
[391122039,1760367038892,-500.0,0.00022638,2]
[391122040,1760367038902,-500.0,0.00022638,2]
[391122041,1760367038912,-500.0,0.00022638,2]
[391122042,1760367038922,-500.0,0.00022638,2]
[391122043,1760367038932,-164.90320818,0.00022638,2]
[391122044,1760367038942,-500.0,0.00022638,2]
[391122045,1760367038952,-500.0,0.00022638,2]
[391122046,1760367038962,-500.0,0.00022638,2]
[391122047,1760367038977,-500.0,0.00022638,2]
[391122048,1760367038987,-500.0,0.00022638,2]
[391122049,1760367038997,-500.0,0.00022638,2]
[391122050,1760367039007,-500.0,0.00022638,2]
[391122051,1760367039019,-500.0,0.00022638,2]
[391122052,1760367039029,-500.0,0.00022638,2]
[391122053,1760367039039,-500.0,0.00022638,2]
[391122054,1760367039049,-500.0,0.00022638,2]
[391122055,1760367039059,-500.0,0.00022638,2]
[391122056,1760367039069,-500.0,0.00022638,2]
[391122057,1760367039079,-500.0,0.00022638,2]
[391122058,1760367039088,-500.0,0.00022638,2]
[391122059,1760367039098,-500.0,0.00022638,2]
[391122060,1760367039108,-500.0,0.00022638,2]
[391122061,1760367039118,-500.0,0.00022638,2]
[391122062,1760367039128,-510.83772015,0.00022638,2]
[391122063,1760367039137,-500.0,0.00022638,2]
[391122064,1760367039147,-633.23804643,0.00022638,2]
[391122065,1760367039156,-500.0,0.00022638,2]
[391122066,1760367039167,-500.0,0.00022638,2]
[391122067,1760367039177,-500.0,0.00022638,2]
[391122068,1760367039186,-500.0,0.00022638,2]
[391122069,1760367039196,-500.0,0.00022638,2]
[391122070,1760367039206,-500.0,0.00022638,2]
[391122071,1760367039216,-500.0,0.00022638,2]
[391122072,1760367039227,-500.0,0.00022638,2]
[391122073,1760367039238,-500.0,0.00022638,2]
[391122074,1760367039247,-500.0,0.00022638,2]
[391122075,1760367039258,-500.0,0.00022638,2]
[391122076,1760367039270,-500.0,0.00022638,2]
[391122077,1760367039280,-500.0,0.00022638,2]
[391122078,1760367039289,-500.0,0.00022638,2]
[391122079,1760367039298,-500.0,0.00022638,2]
[391122080,1760367039307,-500.0,0.00022638,2]
[391122081,1760367039317,-500.0,0.00022638,2]
[391122082,1760367039326,-500.0,0.00022638,2]
[391122083,1760367039335,-525.0,0.00022638,2]
[391122084,1760367039344,-50000.0,0.00022639,2]
[391122085,1760367039354,-500.0,0.00022648,2]
[391122086,1760367039363,-1000.0,0.00022651,30]
[391122087,1760367039372,-242.71820852,0.00022683,2]
[391122088,1760367039382,-500.0,0.00022683,2]
[391122089,1760367039391,-156.23699613,0.00022683,2]
[391122090,1760367039400,-181.52,0.00022684,2]
[391122091,1760367039409,-217.5,0.00022868,2]
[391122092,1760367039419,-500.0,0.00022922,2]
[391122093,1760367039429,-240.0,0.00023468,2]
[391122094,1760367039438,-1034.93483432,0.00023673,2]
[391122096,1760367039571,-527.62924364,0.00023673,2]
[391122098,1760367039580,-314.0,0.00023681,2]
[391122100,1760367039589,-151.0,0.0002372,2]
[391122101,1760367039599,-1000.0,0.00023721,2]
[391122102,1760367039607,-151.0,0.00023722,2]
[391122103,1760367039616,-151.0,0.00023722,2]
[391122104,1760367039625,-171.91385009,0.00023722,2]
[391122105,1760367039634,-170.40948365,0.00023722,2]
[391122106,1760367039643,-248.84,0.00023726,3]
[391122107,1760367039652,-746.52,0.00023726,3]
[391122108,1760367039661,-370000.0,0.00023736,2]
[391122109,1760367039671,-500.0,0.00023773,2]
[391122110,1760367039681,-200.53797051,0.00023773,2]
[391122111,1760367039690,-505.46787646,0.00023773,2]
[391122112,1760367039699,-151.0,0.00023775,2]
[391122113,1760367039708,-12036.6298335,0.00023796,2]
[391122114,1760367039718,-213.04992668,0.0002383,2]
[391122115,1760367039727,-1034.9348343,0.0002398,2]
[391122116,1760367039737,-309.34206886,0.00024033,2]
[391122117,1760367039746,-262.5,0.00024068,2]
[391122118,1760367039756,-16328.95,0.000242,7]
[391122119,1760367039767,-300.0,0.000242,20]
[391122120,1760367039776,-300.0,0.000242,20]
[391122121,1760367039785,-300.0,0.000242,20]
[391122122,1760367039794,-300.0,0.000242,20]
[391122123,1760367039804,-300.0,0.000242,20]
[391122124,1760367039815,-300.0,0.000242,20]
[391122125,1760367039824,-300.0,0.000242,20]
[391122126,1760367039833,-300.0,0.000242,20]
[391122128,1760367039843,-300.0,0.000242,20]
[391122130,1760367039852,-300.0,0.000242,20]
[391122132,1760367039861,-300.0,0.000242,20]
[391122133,1760367039870,-300.0,0.000242,20]
[391122134,1760367039879,-300.0,0.000242,20]
[391122136,1760367039889,-300.0,0.000242,20]
[391122138,1760367039900,-300.0,0.000242,20]
[391122139,1760367039909,-600.0,0.0002421,20]
[391122140,1760367039919,-568.20728249,0.00024217,2]
[391122141,1760367039928,-1034.9348343,0.00024287,2]
[391122142,1760367039938,-500.0,0.00024321,2]
[391122143,1760367039949,-151.0,0.00024347,2]
[391122144,1760367039958,-151.0,0.00024347,2]
[391122145,1760367039969,-151.0,0.00024347,2]
[391122146,1760367039983,-152.14160855,0.00024347,2]
[391122147,1760367039993,-152.2589684,0.00024402,2]
[391122148,1760367040002,-151.82968302,0.00024402,2]
[391122149,1760367040012,-272.28,0.00024574,2]
[391122150,1760367040022,-292.0,0.00024582,2]
[391122151,1760367040031,-420.0,0.00024582,2]
[391122152,1760367040041,-420.0,0.00024582,2]
[391122153,1760367040051,-420.0,0.00024582,2]
[391122154,1760367040060,-300.0,0.00024582,2]
[391122155,1760367040070,-1034.9348343,0.00024593,2]
[391122156,1760367040079,-400.0,0.00024657,2]
[391122157,1760367040089,-500.0,0.00024657,2]
[391122158,1760367040098,-517.50064079,0.00024657,2]
[391122159,1760367040108,-501.7530328,0.00024657,2]